[Event "Late-Titled-Tuesday-Blitz-March-12-2024"]
[Site "Chess.com"]
[Date "2024.03.12"]
[Round "2"]
[White "ExtremeLearner"]
[Black "Chempiblinka"]
[Result "1-0"]
[WhiteElo "2554"]
[BlackElo "2331"]
[TimeControl "180+1"]
[EndTime "14:17:42 PDT"]
[Termination "ExtremeLearner won by checkmate"]

1. d4 {[%clk 0:02:55.6]} 1... Nf6 {[%clk 0:02:56.9]} 2. c4 {[%clk 0:02:52.1]}
2... g6 {[%clk 0:02:56.5]} 3. Nc3 {[%clk 0:02:46.6]} 3... Bg7 {[%clk 0:02:56]}
4. e4 {[%clk 0:02:44.8]} 4... d6 {[%clk 0:02:56.3]} 5. Be2 {[%clk 0:02:44.6]}
5... O-O {[%clk 0:02:56.8]} 6. Be3 {[%clk 0:02:44.3]} 6... c5 {[%clk 0:02:53.8]}
7. d5 {[%clk 0:02:41.2]} 7... e6 {[%clk 0:02:52.6]} 8. h4 {[%clk 0:02:31.9]}
8... exd5 {[%clk 0:02:51.3]} 9. exd5 {[%clk 0:02:22.3]} 9... Nbd7 {[%clk
0:02:42.2]} 10. h5 {[%clk 0:02:19.5]} 10... Ne5 {[%clk 0:02:39.8]} 11. h6 {[%clk
0:02:06.5]} 11... Bh8 {[%clk 0:02:38.9]} 12. Nf3 {[%clk 0:02:03.1]} 12... Re8
{[%clk 0:02:26.6]} 13. Nxe5 {[%clk 0:02:01.3]} 13... Rxe5 {[%clk 0:02:26]} 14.
Bf4 {[%clk 0:02:00.5]} 14... Re8 {[%clk 0:01:50.1]} 15. Bg5 {[%clk 0:01:59.8]}
15... Qa5 {[%clk 0:01:44.5]} 16. O-O {[%clk 0:01:53.5]} 16... a6 {[%clk
0:01:32.5]} 17. Bd3 {[%clk 0:01:47.4]} 17... Ng4 {[%clk 0:01:29.5]} 18. Re1
{[%clk 0:01:40.1]} 18... Bd7 {[%clk 0:01:23.4]} 19. Be2 {[%clk 0:01:29.7]} 19...
Nf6 {[%clk 0:00:58.8]} 20. Qc2 {[%clk 0:01:17.4]} 20... b5 {[%clk 0:00:57.3]}
21. cxb5 {[%clk 0:01:06.9]} 21... axb5 {[%clk 0:00:58.2]} 22. a4 {[%clk
0:01:07.2]} 22... b4 {[%clk 0:00:53.9]} 23. Nb5 {[%clk 0:01:06.7]} 23... Qb6
{[%clk 0:00:37.9]} 24. Bc4 {[%clk 0:00:59.5]} 24... Ng4 {[%clk 0:00:28]} 25.
Rxe8+ {[%clk 0:00:52.6]} 25... Rxe8 {[%clk 0:00:27.5]} 26. a5 {[%clk 0:00:52.5]}
26... Qb8 {[%clk 0:00:28.1]} 27. Qa4 {[%clk 0:00:38.4]} 27... Ne5 {[%clk
0:00:25.3]} 28. Bf1 {[%clk 0:00:38.1]} 28... c4 {[%clk 0:00:19.2]} 29. Qxb4
{[%clk 0:00:28.2]} 29... Bxb5 {[%clk 0:00:17.2]} 30. a6 {[%clk 0:00:27.8]} 30...
Qb6 {[%clk 0:00:13.4]} 31. Be3 {[%clk 0:00:27.4]} 31... Qb8 {[%clk 0:00:10]} 32.
a7 {[%clk 0:00:27.5]} 32... Qb7 {[%clk 0:00:10.3]} 33. a8=Q {[%clk 0:00:22.2]}
33... Rxa8 {[%clk 0:00:10.6]} 34. Rxa8+ {[%clk 0:00:23.1]} 34... Qxa8 {[%clk
0:00:11.4]} 35. Qxb5 {[%clk 0:00:23.2]} 35... Bf6 {[%clk 0:00:09.4]} 36. Bxc4
{[%clk 0:00:16.4]} 36... Nxc4 {[%clk 0:00:07.9]} 37. Qxc4 {[%clk 0:00:17.3]}
37... Qa1+ {[%clk 0:00:07.3]} 38. Kh2 {[%clk 0:00:16]} 38... Qa8 {[%clk
0:00:04.2]} 39. b4 {[%clk 0:00:14.9]} 39... Qf8 {[%clk 0:00:04.7]} 40. g3 {[%clk
0:00:14.7]} 40... Be5 {[%clk 0:00:05.3]} 41. Kg2 {[%clk 0:00:14.8]} 41... Qe8
{[%clk 0:00:05]} 42. b5 {[%clk 0:00:14.9]} 42... Bf6 {[%clk 0:00:04.7]} 43. b6
{[%clk 0:00:14.3]} 43... Be5 {[%clk 0:00:04.3]} 44. b7 {[%clk 0:00:14.1]} 44...
f5 {[%clk 0:00:02.6]} 45. Qc8 {[%clk 0:00:13.9]} 45... Kf7 {[%clk 0:00:02.6]}
46. Qxe8+ {[%clk 0:00:13.6]} 46... Kxe8 {[%clk 0:00:03.5]} 47. b8=Q+ {[%clk
0:00:14.5]} 47... Ke7 {[%clk 0:00:04]} 48. Qc7+ {[%clk 0:00:15]} 48... Kf6
{[%clk 0:00:04.9]} 49. Qg7# {[%clk 0:00:15.2]} 1-0

[Event "Late-Titled-Tuesday-Blitz-March-12-2024"]
[Site "Chess.com"]
[Date "2024.03.12"]
[Round "2"]
[White "mr_gustavo"]
[Black "Hikaru"]
[Result "0-1"]
[WhiteElo "2724"]
[BlackElo "3255"]
[TimeControl "180+1"]
[EndTime "14:17:44 PDT"]
[Termination "Hikaru won on time"]

1. c4 {[%clk 0:03:00.9]} 1... g6 {[%clk 0:02:57.1]} 2. Nc3 {[%clk 0:02:56.8]}
2... Bg7 {[%clk 0:02:57.4]} 3. d4 {[%clk 0:02:57.5]} 3... d6 {[%clk 0:02:51.7]}
4. e4 {[%clk 0:02:58.1]} 4... Nc6 {[%clk 0:02:51.6]} 5. Nf3 {[%clk 0:02:54.2]}
5... Bg4 {[%clk 0:02:51.1]} 6. Be3 {[%clk 0:02:38.3]} 6... e5 {[%clk 0:02:51.1]}
7. d5 {[%clk 0:02:32.2]} 7... Nce7 {[%clk 0:02:48.2]} 8. Be2 {[%clk 0:02:26]}
8... Bxf3 {[%clk 0:02:47.6]} 9. Bxf3 {[%clk 0:02:25.8]} 9... f5 {[%clk
0:02:48.2]} 10. h4 {[%clk 0:02:19.8]} 10... Bh6 {[%clk 0:02:45.8]} 11. Bxh6
{[%clk 0:02:14.4]} 11... Nxh6 {[%clk 0:02:46.7]} 12. h5 {[%clk 0:02:15.2]} 12...
g5 {[%clk 0:02:44.9]} 13. exf5 {[%clk 0:02:14.9]} 13... Nexf5 {[%clk 0:02:44]}
14. Ne4 {[%clk 0:02:12.2]} 14... Nd4 {[%clk 0:02:37.5]} 15. Bg4 {[%clk
0:02:02.4]} 15... O-O {[%clk 0:02:37.3]} 16. Be6+ {[%clk 0:01:38.1]} 16... Kh8
{[%clk 0:02:31.8]} 17. Qd2 {[%clk 0:01:34.2]} 17... Rf4 {[%clk 0:02:31.4]} 18.
f3 {[%clk 0:01:11.7]} 18... g4 {[%clk 0:02:22.7]} 19. O-O-O {[%clk 0:01:05.6]}
19... gxf3 {[%clk 0:02:22.7]} 20. gxf3 {[%clk 0:01:03.9]} 20... Nxf3 {[%clk
0:02:22.8]} 21. Qe3 {[%clk 0:01:01.5]} 21... Ng5 {[%clk 0:02:15.3]} 22. Nxg5
{[%clk 0:00:47.6]} 22... Qxg5 {[%clk 0:02:15.9]} 23. Kb1 {[%clk 0:00:44.6]}
23... Nf5 {[%clk 0:02:16]} 24. Qb3 {[%clk 0:00:38.8]} 24... b6 {[%clk
0:02:07.9]} 25. Rhg1 {[%clk 0:00:37.6]} 25... Qf6 {[%clk 0:01:58.4]} 26. h6
{[%clk 0:00:35.9]} 26... Nxh6 {[%clk 0:01:46.2]} 27. Rh1 {[%clk 0:00:33]} 27...
Nf7 {[%clk 0:01:44.1]} 28. Bxf7 {[%clk 0:00:10]} 28... Qxf7 {[%clk 0:01:43.5]}
29. Ka1 {[%clk 0:00:10.9]} 29... Rf8 {[%clk 0:01:41.8]} 30. Qh3 {[%clk
0:00:09.4]} 30... Rxc4 {[%clk 0:01:40.3]} 31. Rdg1 {[%clk 0:00:04.3]} 31... Rf4
{[%clk 0:01:38.7]} 32. a3 {[%clk 0:00:03.1]} 32... Rf6 {[%clk 0:01:33.3]} 33.
Qh4 {[%clk 0:00:02.9]} 33... Rg6 {[%clk 0:01:30.2]} 34. Rf1 {[%clk 0:00:02]}
34... Qxf1+ {[%clk 0:01:29.5]} 35. Rxf1 {[%clk 0:00:02.9]} 35... Rxf1+ {[%clk
0:01:29.8]} 36. Ka2 {[%clk 0:00:03.8]} 36... Rf7 {[%clk 0:01:30.2]} 37. Qd8+
{[%clk 0:00:03.5]} 37... Kg7 {[%clk 0:01:30.6]} 38. Qb8 {[%clk 0:00:02.8]} 38...
a5 {[%clk 0:01:30.3]} 39. Qd8 {[%clk 0:00:02.8]} 39... h6 {[%clk 0:01:16.6]} 40.
Qh4 {[%clk 0:00:03.1]} 40... Rg5 {[%clk 0:01:16.7]} 41. Kb3 {[%clk 0:00:02.4]}
41... Re7 {[%clk 0:01:17.1]} 42. Ka2 {[%clk 0:00:02.8]} 42... e4 {[%clk
0:01:17.2]} 43. Qe1 {[%clk 0:00:03.5]} 43... e3 {[%clk 0:01:17.5]} 44. Kb3
{[%clk 0:00:04.4]} 44... e2 {[%clk 0:01:17.7]} 45. Kc4 {[%clk 0:00:03.6]} 45...
Kg8 {[%clk 0:01:16.3]} 46. Kd4 {[%clk 0:00:02.4]} 46... Kf8 {[%clk 0:01:14.7]}
47. Kc4 {[%clk 0:00:02.8]} 47... Ke8 {[%clk 0:01:15]} 48. b3 {[%clk 0:00:02.4]}
48... Kd8 {[%clk 0:01:14.7]} 49. b4 {[%clk 0:00:02.6]} 49... a4 {[%clk
0:01:14.3]} 50. Kb5 {[%clk 0:00:02.8]} 50... Kc8 {[%clk 0:01:15]} 51. Kc6 {[%clk
0:00:03]} 51... Kb8 {[%clk 0:01:00.9]} 52. b5 {[%clk 0:00:03]} 52... Re4 {[%clk
0:00:57.7]} 53. Qf2 {[%clk 0:00:01.7]} 53... e1=Q {[%clk 0:00:27.4]} 54. Qf8+
{[%clk 0:00:01.4]} 54... Re8 {[%clk 0:00:28]} 0-1

[Event "Late-Titled-Tuesday-Blitz-March-12-2024"]
[Site "Chess.com"]
[Date "2024.03.12"]
[Round "2"]
[White "Boninknights"]
[Black "CarlosAlbornoz"]
[Result "0-1"]
[WhiteElo "2445"]
[BlackElo "2781"]
[TimeControl "180+1"]
[EndTime "14:17:45 PDT"]
[Termination "CarlosAlbornoz won by resignation"]

1. d4 {[%clk 0:02:59.5]} 1... Nf6 {[%clk 0:02:59.9]} 2. Nf3 {[%clk 0:02:57.9]}
2... g6 {[%clk 0:02:59.4]} 3. c4 {[%clk 0:02:57.4]} 3... Bg7 {[%clk 0:02:59.2]}
4. Nc3 {[%clk 0:02:57.2]} 4... O-O {[%clk 0:02:59.5]} 5. e4 {[%clk 0:02:55.7]}
5... d6 {[%clk 0:03:00.1]} 6. Be2 {[%clk 0:02:54.5]} 6... Bg4 {[%clk 0:03:00.1]}
7. Be3 {[%clk 0:02:53]} 7... Nfd7 {[%clk 0:02:55.7]} 8. Ng1 {[%clk 0:02:51.1]}
8... Bxe2 {[%clk 0:02:55.1]} 9. Ngxe2 {[%clk 0:02:50.6]} 9... c5 {[%clk
0:02:55.6]} 10. Qd2 {[%clk 0:02:49.7]} 10... cxd4 {[%clk 0:02:55.2]} 11. Nxd4
{[%clk 0:02:48.4]} 11... Nc6 {[%clk 0:02:55.4]} 12. f3 {[%clk 0:02:45.2]} 12...
Rc8 {[%clk 0:02:55.2]} 13. b3 {[%clk 0:02:44.2]} 13... a6 {[%clk 0:02:51.8]} 14.
O-O {[%clk 0:02:42.2]} 14... Qa5 {[%clk 0:02:50.4]} 15. Rad1 {[%clk 0:02:37.2]}
15... Rfe8 {[%clk 0:02:47.8]} 16. Nd5 {[%clk 0:02:32.2]} 16... Qd8 {[%clk
0:02:37.6]} 17. Rfe1 {[%clk 0:02:22.9]} 17... Nf6 {[%clk 0:02:31.6]} 18. Nc2
{[%clk 0:02:17.8]} 18... Nd7 {[%clk 0:02:28.6]} 19. Bh6 {[%clk 0:02:12.5]} 19...
Bh8 {[%clk 0:02:28]} 20. Kh1 {[%clk 0:02:11]} 20... b5 {[%clk 0:02:27.1]} 21.
Nce3 {[%clk 0:02:08.5]} 21... Nc5 {[%clk 0:02:22.3]} 22. Rc1 {[%clk 0:01:59]}
22... Ne5 {[%clk 0:02:16.9]} 23. Nf4 {[%clk 0:01:49]} 23... e6 {[%clk
0:02:03.5]} 24. Ng4 {[%clk 0:01:24.8]} 24... Nxg4 {[%clk 0:01:51.3]} 25. fxg4
{[%clk 0:01:16.4]} 25... bxc4 {[%clk 0:01:44.9]} 26. Rxc4 {[%clk 0:01:12.8]}
26... Qh4 {[%clk 0:01:41]} 27. g5 {[%clk 0:01:01.9]} 27... Be5 {[%clk
0:01:37.7]} 28. g3 {[%clk 0:01:00.6]} 28... Qg4 {[%clk 0:01:34.1]} 29. Qe2
{[%clk 0:00:59.1]} 29... Qxe2 {[%clk 0:01:32.5]} 30. Rxe2 {[%clk 0:00:59]} 30...
Bg7 {[%clk 0:01:12.8]} 31. b4 {[%clk 0:00:55]} 31... Nd7 {[%clk 0:01:09]} 32.
Rec2 {[%clk 0:00:54.5]} 32... Nb6 {[%clk 0:01:02.7]} 33. Rxc8 {[%clk 0:00:52.2]}
33... Rxc8 {[%clk 0:01:03.2]} 34. Rxc8+ {[%clk 0:00:51.5]} 34... Nxc8 {[%clk
0:01:04.1]} 35. a4 {[%clk 0:00:50.4]} 35... Bc3 {[%clk 0:00:53.4]} 36. Nd3
{[%clk 0:00:42]} 36... Nb6 {[%clk 0:00:47.3]} 37. a5 {[%clk 0:00:41.4]} 37...
Nc4 {[%clk 0:00:47]} 38. Kg2 {[%clk 0:00:40.4]} 38... Ne5 {[%clk 0:00:36.9]} 39.
Nxe5 {[%clk 0:00:38.4]} 39... Bxe5 {[%clk 0:00:37.3]} 40. Kf3 {[%clk 0:00:35.5]}
40... Bc3 {[%clk 0:00:37.4]} 41. b5 {[%clk 0:00:35]} 41... axb5 {[%clk
0:00:38.3]} 42. a6 {[%clk 0:00:34.1]} 42... Bd4 {[%clk 0:00:38.7]} 43. Ke2
{[%clk 0:00:33.5]} 43... Bc5 {[%clk 0:00:29.7]} 44. Kd3 {[%clk 0:00:33.1]} 44...
d5 {[%clk 0:00:30]} 45. exd5 {[%clk 0:00:31.4]} 45... exd5 {[%clk 0:00:30.9]}
46. g4 {[%clk 0:00:30.1]} 46... b4 {[%clk 0:00:29.3]} 47. h4 {[%clk 0:00:28.9]}
47... Ba7 {[%clk 0:00:26.4]} 48. h5 {[%clk 0:00:27.4]} 48... Bc5 {[%clk
0:00:25.4]} 49. Kc2 {[%clk 0:00:26.6]} 49... d4 {[%clk 0:00:21.6]} 50. Kd3
{[%clk 0:00:25.6]} 50... b3 {[%clk 0:00:21.7]} 51. hxg6 {[%clk 0:00:24.2]} 51...
fxg6 {[%clk 0:00:21.2]} 52. Kc4 {[%clk 0:00:23.9]} 52... b2 {[%clk 0:00:18.5]}
53. Kxc5 {[%clk 0:00:23.7]} 53... b1=Q {[%clk 0:00:18.1]} 54. Kxd4 {[%clk
0:00:22.1]} 54... Qb6+ {[%clk 0:00:17.7]} 0-1

[Event "Late-Titled-Tuesday-Blitz-March-12-2024"]
[Site "Chess.com"]
[Date "2024.03.12"]
[Round "2"]
[White "Mikayel99"]
[Black "AlexandreHouhou"]
[Result "1-0"]
[WhiteElo "2552"]
[BlackElo "2328"]
[TimeControl "180+1"]
[EndTime "14:17:48 PDT"]
[Termination "Mikayel99 won by checkmate"]

1. Nf3 {[%clk 0:02:58.9]} 1... d5 {[%clk 0:02:59.1]} 2. d4 {[%clk 0:02:57.6]}
2... Nf6 {[%clk 0:02:58.9]} 3. g3 {[%clk 0:02:56.6]} 3... Bf5 {[%clk 0:02:58.8]}
4. Bg2 {[%clk 0:02:52.9]} 4... e6 {[%clk 0:02:59.1]} 5. O-O {[%clk 0:02:50.6]}
5... h6 {[%clk 0:02:59.6]} 6. c4 {[%clk 0:02:49.8]} 6... c6 {[%clk 0:02:59.9]}
7. Nc3 {[%clk 0:02:46.1]} 7... Nbd7 {[%clk 0:02:59.6]} 8. Re1 {[%clk 0:02:44.7]}
8... Be7 {[%clk 0:02:57.5]} 9. b3 {[%clk 0:02:44.9]} 9... O-O {[%clk 0:02:57.3]}
10. Bb2 {[%clk 0:02:43]} 10... a5 {[%clk 0:02:51]} 11. Nd2 {[%clk 0:02:33.6]}
11... Bb4 {[%clk 0:02:48.2]} 12. a3 {[%clk 0:02:21]} 12... Be7 {[%clk
0:02:45.5]} 13. e4 {[%clk 0:02:15.2]} 13... dxe4 {[%clk 0:02:45.9]} 14. Ndxe4
{[%clk 0:02:15.8]} 14... Nxe4 {[%clk 0:02:46.1]} 15. Nxe4 {[%clk 0:02:15.1]}
15... Nf6 {[%clk 0:02:46.4]} 16. Nxf6+ {[%clk 0:02:07.5]} 16... Bxf6 {[%clk
0:02:47.3]} 17. Qd2 {[%clk 0:02:07.7]} 17... Qd7 {[%clk 0:02:27]} 18. Rad1
{[%clk 0:02:00.2]} 18... Rfd8 {[%clk 0:02:26.7]} 19. h4 {[%clk 0:01:53.6]} 19...
h5 {[%clk 0:02:04.6]} 20. Bc3 {[%clk 0:01:34.3]} 20... Qc7 {[%clk 0:01:53.8]}
21. Qb2 {[%clk 0:01:23.2]} 21... Bg4 {[%clk 0:01:51.4]} 22. Rd2 {[%clk
0:01:19.3]} 22... Rd7 {[%clk 0:01:37.6]} 23. b4 {[%clk 0:00:48.9]} 23... axb4
{[%clk 0:01:37.3]} 24. axb4 {[%clk 0:00:49.8]} 24... Rad8 {[%clk 0:01:35.8]} 25.
b5 {[%clk 0:00:50.1]} 25... c5 {[%clk 0:01:32.2]} 26. b6 {[%clk 0:00:43.1]}
26... Qc8 {[%clk 0:01:28.8]} 27. d5 {[%clk 0:00:41.4]} 27... Bxc3 {[%clk
0:01:26.2]} 28. Qxc3 {[%clk 0:00:42.3]} 28... exd5 {[%clk 0:01:25.8]} 29. cxd5
{[%clk 0:00:39.3]} 29... c4 {[%clk 0:01:15]} 30. Re4 {[%clk 0:00:33.6]} 30...
Rxd5 {[%clk 0:01:05.8]} 31. Rxc4 {[%clk 0:00:27.4]} 31... Qxc4 {[%clk
0:00:53.4]} 32. Qxc4 {[%clk 0:00:28.3]} 32... Rxd2 {[%clk 0:00:53.4]} 33. Bxb7
{[%clk 0:00:28.7]} 33... R8d4 {[%clk 0:00:38.6]} 34. Qc5 {[%clk 0:00:24.5]}
34... g6 {[%clk 0:00:22.8]} 35. Bg2 {[%clk 0:00:21.4]} 35... Rd1+ {[%clk
0:00:18.7]} 36. Kh2 {[%clk 0:00:21.6]} 36... Rd8 {[%clk 0:00:16.8]} 37. b7
{[%clk 0:00:21.5]} 37... Rb1 {[%clk 0:00:14.6]} 38. Qc7 {[%clk 0:00:18.4]} 38...
Rf8 {[%clk 0:00:12.3]} 39. Bd5 {[%clk 0:00:17]} 39... Kg7 {[%clk 0:00:10.2]} 40.
Qe5+ {[%clk 0:00:14.7]} 40... Kh7 {[%clk 0:00:08.1]} 41. Kg2 {[%clk 0:00:10.6]}
41... Be6 {[%clk 0:00:08.2]} 42. Bxe6 {[%clk 0:00:09.3]} 42... fxe6 {[%clk
0:00:09.1]} 43. Qc7+ {[%clk 0:00:10]} 43... Kg8 {[%clk 0:00:07.9]} 44. f4 {[%clk
0:00:10.1]} 44... Rb2+ {[%clk 0:00:06.6]} 45. Kf3 {[%clk 0:00:10.5]} 45... Rb4
{[%clk 0:00:06.4]} 46. Ke3 {[%clk 0:00:08.7]} 46... Rb3+ {[%clk 0:00:04.8]} 47.
Kd4 {[%clk 0:00:08.3]} 47... Rb1 {[%clk 0:00:04.6]} 48. Ke5 {[%clk 0:00:07.8]}
48... Re1+ {[%clk 0:00:04.4]} 49. Kd6 {[%clk 0:00:08.2]} 49... Rd1+ {[%clk
0:00:04.8]} 50. Ke5 {[%clk 0:00:07.7]} 50... Re1+ {[%clk 0:00:05.3]} 51. Kd6
{[%clk 0:00:04.8]} 51... Rd1+ {[%clk 0:00:05.8]} 52. Kxe6 {[%clk 0:00:04.2]}
52... Re8+ {[%clk 0:00:05.1]} 53. Kf6 {[%clk 0:00:04.7]} 53... Rde1 {[%clk
0:00:03.7]} 54. Qg7# {[%clk 0:00:04.6]} 1-0

[Event "Late-Titled-Tuesday-Blitz-March-12-2024"]
[Site "Chess.com"]
[Date "2024.03.12"]
[Round "2"]
[White "remyrushbrooke"]
[Black "kleber2007"]
[Result "0-1"]
[WhiteElo "2261"]
[BlackElo "2531"]
[TimeControl "180+1"]
[EndTime "14:17:48 PDT"]
[Termination "kleber2007 won by checkmate"]

1. d4 {[%clk 0:03:00.9]} 1... Nf6 {[%clk 0:02:59.3]} 2. Nc3 {[%clk 0:03:01.3]}
2... g6 {[%clk 0:02:59.8]} 3. e4 {[%clk 0:03:01]} 3... d6 {[%clk 0:02:59.3]} 4.
f4 {[%clk 0:03:01.1]} 4... Bg7 {[%clk 0:02:58.2]} 5. Nf3 {[%clk 0:03:01.7]} 5...
O-O {[%clk 0:02:58.2]} 6. e5 {[%clk 0:03:01.8]} 6... Nfd7 {[%clk 0:02:56.6]} 7.
Bc4 {[%clk 0:03:00.5]} 7... c5 {[%clk 0:02:55.3]} 8. e6 {[%clk 0:02:58.8]} 8...
Nb6 {[%clk 0:02:55]} 9. exf7+ {[%clk 0:02:58.7]} 9... Kh8 {[%clk 0:02:54.8]} 10.
Ng5 {[%clk 0:02:59]} 10... Nxc4 {[%clk 0:02:50.2]} 11. h4 {[%clk 0:02:59.6]}
11... h5 {[%clk 0:02:41.8]} 12. Qd3 {[%clk 0:02:47.7]} 12... Bf5 {[%clk
0:02:35.8]} 13. Qxc4 {[%clk 0:02:47.7]} 13... cxd4 {[%clk 0:02:35.8]} 14. Ne2
{[%clk 0:02:43.6]} 14... Nc6 {[%clk 0:02:34.7]} 15. Ng3 {[%clk 0:02:38.9]} 15...
Qd7 {[%clk 0:02:31.6]} 16. Bd2 {[%clk 0:02:15.9]} 16... Rac8 {[%clk 0:02:25]}
17. Nxf5 {[%clk 0:02:07.2]} 17... Qxf5 {[%clk 0:02:22.9]} 18. Qd3 {[%clk
0:01:53.3]} 18... e5 {[%clk 0:02:01.8]} 19. g4 {[%clk 0:01:35.9]} 19... Qxd3
{[%clk 0:01:47.8]} 20. cxd3 {[%clk 0:01:36.8]} 20... Bf6 {[%clk 0:01:48.2]} 21.
gxh5 {[%clk 0:01:22.6]} 21... gxh5 {[%clk 0:01:47.3]} 22. fxe5 {[%clk
0:01:14.3]} 22... dxe5 {[%clk 0:01:33.9]} 23. Rf1 {[%clk 0:01:12.6]} 23... Bxg5
{[%clk 0:01:32.5]} 24. hxg5 {[%clk 0:00:49.6]} 24... Kg7 {[%clk 0:01:32.2]} 25.
b4 {[%clk 0:00:25.7]} 25... Rxf7 {[%clk 0:01:30.2]} 26. Rxf7+ {[%clk 0:00:24.1]}
26... Kxf7 {[%clk 0:01:30.1]} 27. Ke2 {[%clk 0:00:20.2]} 27... Ne7 {[%clk
0:01:20.6]} 28. Rf1+ {[%clk 0:00:18]} 28... Ke6 {[%clk 0:01:14.6]} 29. Rf6+
{[%clk 0:00:17.7]} 29... Kd5 {[%clk 0:01:14.5]} 30. Rf7 {[%clk 0:00:18.1]} 30...
Ng6 {[%clk 0:01:09.8]} 31. Rg7 {[%clk 0:00:15]} 31... Nh4 {[%clk 0:00:48.7]} 32.
Rxb7 {[%clk 0:00:12.7]} 32... Nf5 {[%clk 0:00:48.4]} 33. Rxa7 {[%clk 0:00:10.8]}
33... Rc2 {[%clk 0:00:45.2]} 34. Ra5+ {[%clk 0:00:09.4]} 34... Ke6 {[%clk
0:00:44.9]} 35. g6 {[%clk 0:00:07.9]} 35... Kf6 {[%clk 0:00:40.3]} 36. Ra6+
{[%clk 0:00:07.6]} 36... Kg7 {[%clk 0:00:40.2]} 37. a4 {[%clk 0:00:08.1]} 37...
h4 {[%clk 0:00:39.8]} 38. Ra7+ {[%clk 0:00:05]} 38... Kxg6 {[%clk 0:00:39.8]}
39. Ra6+ {[%clk 0:00:05.2]} 39... Kh5 {[%clk 0:00:40]} 40. Ra5 {[%clk
0:00:04.7]} 40... h3 {[%clk 0:00:37.8]} 41. Rxe5 {[%clk 0:00:04.9]} 41... Kg4
{[%clk 0:00:38.4]} 42. Re4+ {[%clk 0:00:04.6]} 42... Kg3 {[%clk 0:00:38.6]} 43.
Kd1 {[%clk 0:00:04.8]} 43... Ra2 {[%clk 0:00:30.9]} 44. Bf4+ {[%clk 0:00:05.1]}
44... Kg2 {[%clk 0:00:23.7]} 45. a5 {[%clk 0:00:03.7]} 45... Ra3 {[%clk
0:00:16.7]} 46. Re2+ {[%clk 0:00:03.5]} 46... Kf3 {[%clk 0:00:16.6]} 47. Bd6
{[%clk 0:00:02.3]} 47... Rxd3+ {[%clk 0:00:16.4]} 48. Ke1 {[%clk 0:00:02.2]}
48... Ra3 {[%clk 0:00:17.3]} 49. Kf1 {[%clk 0:00:02.2]} 49... Ra1+ {[%clk
0:00:17.3]} 50. Re1 {[%clk 0:00:02.1]} 50... Ne3+ {[%clk 0:00:17.9]} 51. Kg1
{[%clk 0:00:02.5]} 51... Rxe1+ {[%clk 0:00:18.1]} 52. Kh2 {[%clk 0:00:03.4]}
52... Kg4 {[%clk 0:00:18.1]} 53. Be5 {[%clk 0:00:02.9]} 53... Re2+ {[%clk
0:00:19]} 54. Kh1 {[%clk 0:00:02.6]} 54... Nf5 {[%clk 0:00:18.5]} 55. Bxd4
{[%clk 0:00:02.8]} 55... Ng3+ {[%clk 0:00:17.5]} 56. Kg1 {[%clk 0:00:02.4]}
56... Rg2# {[%clk 0:00:18.4]} 0-1

[Event "Late-Titled-Tuesday-Blitz-March-12-2024"]
[Site "Chess.com"]
[Date "2024.03.12"]
[Round "2"]
[White "yaguigor"]
[Black "Resignify"]
[Result "1/2-1/2"]
[WhiteElo "2611"]
[BlackElo "2249"]
[TimeControl "180+1"]
[EndTime "14:17:51 PDT"]
[Termination "Game drawn by repetition"]

1. d4 {[%clk 0:02:58.6]} 1... Nf6 {[%clk 0:03:00.1]} 2. c4 {[%clk 0:02:57.9]}
2... g6 {[%clk 0:03:00.6]} 3. Nc3 {[%clk 0:02:56.4]} 3... Bg7 {[%clk 0:03:01.2]}
4. e4 {[%clk 0:02:55.5]} 4... d6 {[%clk 0:03:01.8]} 5. Be2 {[%clk 0:02:54.4]}
5... O-O {[%clk 0:03:02.3]} 6. Nf3 {[%clk 0:02:54.5]} 6... e5 {[%clk 0:03:00.1]}
7. Be3 {[%clk 0:02:52.7]} 7... Nbd7 {[%clk 0:02:58.9]} 8. O-O {[%clk 0:02:42.7]}
8... Ng4 {[%clk 0:02:57.9]} 9. Bg5 {[%clk 0:02:41.7]} 9... f6 {[%clk 0:02:56.5]}
10. Bd2 {[%clk 0:02:35.8]} 10... Nh6 {[%clk 0:02:55.6]} 11. b4 {[%clk
0:02:25.3]} 11... Nf7 {[%clk 0:02:45.3]} 12. dxe5 {[%clk 0:02:18.6]} 12... dxe5
{[%clk 0:02:40.1]} 13. c5 {[%clk 0:02:17.3]} 13... Bh6 {[%clk 0:02:38.6]} 14.
Bc4 {[%clk 0:02:08.8]} 14... Kg7 {[%clk 0:02:38.2]} 15. Qc2 {[%clk 0:01:55.3]}
15... Bxd2 {[%clk 0:02:32.4]} 16. Nxd2 {[%clk 0:01:56.2]} 16... Re8 {[%clk
0:02:04.4]} 17. Rad1 {[%clk 0:01:52.7]} 17... c6 {[%clk 0:01:49.5]} 18. Bxf7
{[%clk 0:01:50.6]} 18... Kxf7 {[%clk 0:01:49.3]} 19. Nc4 {[%clk 0:01:51.2]}
19... Kg7 {[%clk 0:01:47.2]} 20. Nd6 {[%clk 0:01:50.4]} 20... Re7 {[%clk
0:01:47.2]} 21. Nxc8 {[%clk 0:01:46.8]} 21... Qxc8 {[%clk 0:01:41.8]} 22. Rd6
{[%clk 0:01:45.6]} 22... Nf8 {[%clk 0:01:40.8]} 23. Rfd1 {[%clk 0:01:43.7]}
23... Qe8 {[%clk 0:01:32.7]} 24. Qb3 {[%clk 0:01:36.8]} 24... Qf7 {[%clk
0:01:32.3]} 25. Qxf7+ {[%clk 0:01:23.5]} 25... Kxf7 {[%clk 0:01:32.4]} 26. g3
{[%clk 0:01:20]} 26... Rae8 {[%clk 0:01:31.7]} 27. f3 {[%clk 0:01:18]} 27... Ne6
{[%clk 0:01:29.7]} 28. Ne2 {[%clk 0:01:17.7]} 28... Kf8 {[%clk 0:01:09.1]} 29.
Kf2 {[%clk 0:01:17]} 29... Kf7 {[%clk 0:01:03.4]} 30. Ke3 {[%clk 0:01:16.8]}
30... Nf8 {[%clk 0:01:01.1]} 31. a4 {[%clk 0:01:07.9]} 31... Rc8 {[%clk
0:01:00.8]} 32. a5 {[%clk 0:01:06.3]} 32... Rcc7 {[%clk 0:01:00.4]} 33. Nc3
{[%clk 0:01:01.5]} 33... Ne6 {[%clk 0:00:46.5]} 34. Ne2 {[%clk 0:01:00.8]} 34...
Nf8 {[%clk 0:00:45.6]} 35. Rd8 {[%clk 0:01:00.7]} 35... a6 {[%clk 0:00:36.3]}
36. R1d6 {[%clk 0:00:58.7]} 36... Rcd7 {[%clk 0:00:35]} 37. Nc3 {[%clk
0:00:51.6]} 37... Rxd6 {[%clk 0:00:32.4]} 38. cxd6 {[%clk 0:00:47.6]} 38... Rd7
{[%clk 0:00:32.6]} 39. Rxd7+ {[%clk 0:00:46.5]} 39... Nxd7 {[%clk 0:00:33.5]}
40. Na4 {[%clk 0:00:44.9]} 40... Ke6 {[%clk 0:00:25.3]} 41. Nc5+ {[%clk
0:00:45.3]} 41... Kxd6 {[%clk 0:00:22.3]} 42. Nxb7+ {[%clk 0:00:44.7]} 42... Kc7
{[%clk 0:00:20.7]} 43. Nc5 {[%clk 0:00:44.7]} 43... Nxc5 {[%clk 0:00:21]} 44.
bxc5 {[%clk 0:00:44.7]} 44... Kd7 {[%clk 0:00:21.7]} 45. f4 {[%clk 0:00:43.6]}
45... h5 {[%clk 0:00:15.9]} 46. Kf3 {[%clk 0:00:40]} 46... Ke6 {[%clk
0:00:15.9]} 47. h3 {[%clk 0:00:38.8]} 47... Kf7 {[%clk 0:00:10.2]} 48. g4 {[%clk
0:00:34.5]} 48... hxg4+ {[%clk 0:00:08.3]} 49. Kxg4 {[%clk 0:00:30.5]} 49...
exf4 {[%clk 0:00:08.5]} 50. Kxf4 {[%clk 0:00:30.4]} 50... Ke6 {[%clk 0:00:08.9]}
51. h4 {[%clk 0:00:30.1]} 51... Ke7 {[%clk 0:00:05.7]} 52. Ke3 {[%clk
0:00:21.9]} 52... Ke6 {[%clk 0:00:06]} 53. Kf4 {[%clk 0:00:22.1]} 53... Ke7
{[%clk 0:00:05.9]} 54. Kg4 {[%clk 0:00:21.4]} 54... Ke6 {[%clk 0:00:06.3]} 55.
Kf4 {[%clk 0:00:21.1]} 1/2-1/2